fUSD/lending_fUSD_20240118
["ID","MTS","AMOUNT","RATE_DAILY","PERIOD"]
[312071152,1705596649003,-1638.076465,0.00037103,2]
[312071154,1705596649013,-500.0,0.0003711,2]
[312071156,1705596649025,-150.0,0.00037121,2]
[312071158,1705596649035,-150.0,0.00037175,2]
[312071160,1705596649049,-1159.75349896,0.0003724,4]
[312071163,1705596649061,-276.185974,0.0003726,14]
[312071165,1705596649072,-205.0,0.00037273,12]
[312071167,1705596649083,-4378986.35723154,0.0003728,2]
[312071227,1705596649717,-617.97703804,0.0003728,2]
[312071230,1705596649743,-20929.85696295,0.0003728,2]
[312071232,1705596649756,-74375.62407745,0.0003728,2]
[312071234,1705596649766,-157.0,0.000373,7]
[312071236,1705596649776,-150.0,0.000373,26]
[312071238,1705596649785,-150.0,0.00037337,2]
[312071240,1705596649796,-150.0,0.00037386,2]
[312071242,1705596649806,-14855.29034662,0.000374,7]
[312071244,1705596649818,-4802.99965338,0.000374,7]
[312071246,1705596649828,-301.04,0.0003742,2]
[312071249,1705596649838,-150.0,0.00037435,2]
[312071250,1705596649847,-153.84,0.00037443,2]
[312071253,1705596649857,-680.44,0.00037491,2]
[312071255,1705596649866,-150.0,0.00037491,2]
[312071257,1705596649876,-150.0,0.00037499,2]
[312071259,1705596649886,-1313.99,0.000375,3]
[312071261,1705596649896,-1313.99,0.000375,3]
[312071263,1705596649909,-1313.99,0.000375,3]
[312071265,1705596649919,-1313.99,0.000375,3]
[312071267,1705596649929,-1313.99,0.000375,3]
[312071269,1705596649939,-1313.99,0.000375,3]
[312071271,1705596649948,-1313.99,0.000375,3]
[312071273,1705596649957,-1313.99,0.000375,3]
[312071275,1705596649966,-1313.99,0.000375,3]
[312071277,1705596649976,-1313.99,0.000375,3]
[312071279,1705596649986,-1313.99,0.000375,3]
[312071281,1705596649995,-1313.99,0.000375,3]
[312071282,1705596650004,-1313.99,0.000375,3]
[312071284,1705596650014,-1313.99,0.000375,3]
[312071285,1705596650023,-1313.99,0.000375,3]
[312071287,1705596650031,-1313.99,0.000375,3]
[312071288,1705596650041,-1313.99,0.000375,3]
[312071290,1705596650050,-1313.99,0.000375,3]
[312071291,1705596650059,-1313.99,0.000375,3]
[312071293,1705596650069,-1313.99,0.000375,3]
[312071294,1705596650078,-250.0,0.000375,12]
[312071296,1705596650088,-150.0,0.000375,9]
[312071297,1705596650099,-150.0,0.00037515,2]
[312071299,1705596650107,-150.0,0.00037522,2]
[312071300,1705596650117,-150.0,0.00037533,2]
[312071302,1705596650127,-150.426493,0.00037555,2]
[312071303,1705596650136,-1638.076465,0.00037555,2]
[312071305,1705596650145,-150.0,0.00037562,2]
[312071306,1705596650158,-150.0,0.00037566,2]
[312071308,1705596650168,-150.0,0.00037573,2]
[312071309,1705596650178,-156.73183507,0.00037584,2]
[312071311,1705596650189,-150.0,0.00037585,2]
[312071312,1705596650199,-889.88,0.000376,2]
[312071314,1705596650209,-150.0,0.00037603,2]
[312071315,1705596650219,-150.0,0.00037613,2]
[312071317,1705596650229,-500.0,0.0003763,10]
[312071319,1705596650239,-150.0,0.00037637,2]
[312071320,1705596650248,-150.0,0.00037638,2]
[312071322,1705596650258,-150.0,0.00037642,2]
[312071323,1705596650267,-11480.60742472,0.00037645,10]
[312071333,1705596650398,-360.8545052,0.00024257,2]
[312071335,1705596650411,-118.81402225,0.00037645,10]
[312071337,1705596650426,-674.39633457,0.00037645,10]
[312071339,1705596650439,-910.8403576,0.00037645,10]
[312071341,1705596650451,-1659.44698506,0.00037645,10]
[312071343,1705596650467,-854.53218516,0.00037645,10]
[312071344,1705596650479,-311.34081902,0.00037645,10]
[312071346,1705596650489,-150.0,0.0003765,2]
[312071348,1705596650500,-150.0,0.00037686,2]
[312071349,1705596650513,-150.0,0.00037703,2]
[312071351,1705596650525,-315.02889246,0.00037745,30]
[312071353,1705596650536,-1998.36,0.0003775,2]
[312071355,1705596650546,-150.0,0.0003777,2]
[312071356,1705596650556,-150.0,0.0003778,2]
[312071358,1705596650568,-1842.75290052,0.00037787,10]
[312071360,1705596650578,-150.0,0.00037797,2]
[312071362,1705596650588,-150.0,0.000378,27]
[312071364,1705596650600,-2439.83,0.00037808,2]
[312071366,1705596650614,-6730.18,0.00037808,2]
[312071368,1705596650627,-150.0,0.00037815,2]
[312071370,1705596650638,-220.45,0.00037834,2]
[312071371,1705596650648,-192.61145802,0.0003785,2]
[312071372,1705596650665,-150.0,0.00037869,2]
[312071373,1705596650676,-150.0,0.00037869,2]
[312071374,1705596650687,-150.0,0.00037883,2]
[312071375,1705596650700,-11483.0,0.0003789,3]
[312071376,1705596650711,-150.0,0.00037897,2]
[312071377,1705596650722,-227.91,0.000379,2]
[312071378,1705596650732,-12084.52150441,0.000379,7]
[312071379,1705596650755,-4207.41639595,0.000379,7]
[312071381,1705596650769,-364.9999919,0.000379,7]
[312071383,1705596650781,-388.93617367,0.000379,7]
[312071385,1705596650794,-758.24548508,0.000379,7]
[312071387,1705596650808,-1854.17044899,0.000379,7]
[312071389,1705596650818,-417564.82955102,0.000379,3]
[312071391,1705596650830,-97073.0,0.000379,3]
[312071395,1705596650858,-446.19228698,0.00023618,2]
[312071398,1705596650876,-659.52412099,0.00023618,2]
[312071400,1705596650888,-4.09701154,0.000379,3]
[312071403,1705596650908,-162.10606511,0.00025,4]
[312071405,1705596650918,-456.0540736,0.000379,3]
[312071423,1705596651095,-293.66560954,0.00025,4]
[312071426,1705596651105,-3526.11573024,0.00025297,2]
[312071428,1705596651114,-158.0,0.00035,2]
[312071430,1705596651123,-158.0,0.00036247,2]
[312071432,1705596651133,-1826.83,0.0003749,10]
[312071434,1705596651143,-2503.68472476,0.000379,3]
[312071436,1705596651162,-400.57,0.000379,3]
[312071439,1705596651175,-1891.70394769,0.000379,3]
[312071441,1705596651188,-731.53118823,0.000379,3]
[312071443,1705596651200,-1854.34766316,0.000379,3]
[312071445,1705596651213,-14398.51752687,0.000379,3]
[312071448,1705596651232,-1480.33676909,0.00021899,2]
[312071450,1705596651244,-409.248,0.00021899,2]
[312071458,1705596651312,-25236.72359848,0.00021899,2]
[312071460,1705596651323,-157.46669912,0.00023617,2]
[312071462,1705596651333,-83282.80110913,0.000379,3]
[312071464,1705596651343,-4428.66631366,0.000379,2]
[312071466,1705596651352,-490.43865704,0.000379,2]
[312071468,1705596651362,-507.12349027,0.000379,2]
[312071470,1705596651371,-150.0,0.00037901,2]
[312071472,1705596651380,-150.0,0.0003791,2]
[312071474,1705596651389,-150.0,0.0003792,2]
[312071476,1705596651399,-1820.68,0.00037936,5]
[312071478,1705596651413,-150.0,0.0003795,2]
[312071480,1705596651423,-152.0,0.00037961,5]
[312071482,1705596651433,-150.5,0.0003797,120]
[312071484,1705596651443,-190.67946795,0.00037972,2]
[312071486,1705596651452,-150.0,0.00037972,2]
[312071488,1705596651464,-155.75,0.0003798,120]
[312071491,1705596651473,-150.5,0.0003798,120]
[312071492,1705596651484,-150.0,0.00037987,2]
[312071495,1705596651494,-228.64,0.0003799,30]
[312071497,1705596651504,-179.57,0.0003799,120]
[312071499,1705596651520,-150.5,0.0003799,120]
[312071501,1705596651530,-150.5,0.0003799,120]
[312071503,1705596651540,-213.45,0.0003799,120]
[312071505,1705596651550,-212.45,0.0003799,120]
[312071507,1705596651562,-231.65788442,0.00037997,2]
[312071509,1705596651571,-300.0,0.00037999,10]
[312071511,1705596651580,-300.0,0.00037999,10]
[312071513,1705596651590,-300.0,0.00037999,10]
[312071515,1705596651602,-538.78509975,0.00037999,10]
[312071517,1705596651613,-150.0,0.00037999,2]
[312071519,1705596651624,-150.0,0.00037999,2]
[312071521,1705596651633,-150.0,0.00037999,2]
[312071523,1705596651643,-150.0,0.00037999,2]
[312071525,1705596651655,-9178.66051716,0.00038,4]
[312071527,1705596651667,-6086.18010155,0.00038,4]
[312071529,1705596651679,-3595.12099999,0.00038,4]
[312071536,1705596651742,-1000.0,0.000301,2]
[312071538,1705596651751,-20060.0,0.00038,4]
[312072099,1705596657763,-21086.50000003,0.00038,4]
[312072105,1705596657807,-283.55001256,0.0003217,2]
[312072107,1705596657820,-624.54999999,0.0003217,2]
[312072589,1705596679000,186.44835477,0.000194,2]
[312072590,1705596683634,3188.36893674,0.00020926,2]
[312072592,1705596692251,-155.27042409,0.00021798,2]
[312072593,1705596692275,-336.93860005,0.00021798,2]
[312072594,1705596692298,-155.16827446,0.00021798,2]
[312072595,1705596692322,-278.70241203,0.00021798,2]
[312072596,1705596692344,-231.93292492,0.00021798,2]
[312072597,1705596692368,-300.0,0.00021799,2]
[312072598,1705596692393,-541.98736445,0.000218,2]
[312072599,1705596692710,-2000.0,0.000218,2]
[312072600,1705596693091,-2000.0,0.000218,2]
[312072601,1705596693486,-2000.0,0.000218,2]
[312072602,1705596693788,-2000.0,0.000218,2]
[312072603,1705596695803,-695.95799169,0.00021798,2]
[312072604,1705596695828,-1304.04200831,0.000218,2]
[312072606,1705596709581,-650.93242009,0.00021799,2]
[312072607,1705596709603,-189.49317273,0.00021799,2]
[312072608,1705596709631,-1159.57440718,0.000218,2]
[312072609,1705596717606,-318.71536209,0.00021798,2]
[312072610,1705596717629,-1681.28463791,0.00021799,2]
[312072611,1705596718009,-2000.0,0.00021799,2]
[312072612,1705596736239,-163.97646667,0.00021798,2]
[312072613,1705596736263,-320.73462568,0.00021798,2]
[312072614,1705596736285,-1515.28890765,0.00021799,2]
[312072615,1705596736675,-2000.0,0.00021799,2]
[312072616,1705596736979,-2000.0,0.00021799,2]
[312072617,1705596737334,-2000.0,0.00021799,2]
[312072618,1705596737740,-2000.0,0.00021799,2]
[312072619,1705596766827,157.83,0.00019535,2]
[312072628,1705596768460,-279.34722121,0.00021797,2]
[312072629,1705596768482,-163.97279315,0.00021798,2]
[312072630,1705596768508,-388.67998564,0.00021799,2]
[312072632,1705596850566,499.999999,0.0002,2]
[312072633,1705596872770,288.24,0.00021587,2]
[312072638,1705597007802,157.70899039,0.00021599,2]
[312072644,1705597080676,21024.61,0.00021198,2]
[312072645,1705597097785,156.92,0.00021158,2]
[312072646,1705597109405,2000.0,0.00021158,2]
[312072648,1705597117309,155.27,0.00021158,2]
[312072649,1705597138556,166.91,0.00021158,2]
[312072650,1705597162954,500.0,0.00021158,2]
[312072659,1705597182813,162.59,0.00021389,2]
[312072660,1705597183030,162.59,0.00021548,2]
[312072661,1705597204230,152.88,0.00019255,2]
[312072662,1705597244082,250.0,0.00021029,2]
[312072664,1705597267998,150.0,0.000209,2]
[312072665,1705597269402,150.0,0.00021448,2]
[312072666,1705597315667,200.0,0.00021045,2]
[312072667,1705597346918,252.27,0.00021029,2]
[312072668,1705597432096,275.06,0.00021061,2]
[312072669,1705597439835,302.29,0.00021082,2]
[312072670,1705597458065,2705.0,0.00021082,2]
[312072671,1705597491408,259.76787016,0.00021082,2]
[312072672,1705597497722,3190.09672447,0.00021022,2]
[312072673,1705597508507,360.75913577,0.00017518,2]
[312072674,1705597511401,259.76787016,0.00021082,2]
[312072675,1705597521710,3188.36893674,0.00021022,2]
[312072676,1705597523214,152.3,0.0002109,2]
[312072677,1705597541118,2000.0,0.00021056,2]
[312072678,1705597552317,482.0192,0.00021594,2]
[312072679,1705597560412,156.92,0.00021045,2]
[312072680,1705597564104,181.58,0.00021563,2]
[312072681,1705597620485,500.0,0.00021001,2]
[312072682,1705597622530,160.56,0.00021122,2]
[312072683,1705597622740,160.56,0.00021222,2]
[312072684,1705597623157,160.56,0.00021322,2]
[312072685,1705597623552,160.56,0.00021422,2]
[312072686,1705597623937,160.56,0.00021522,2]
[312072692,1705597662451,287.05,0.00020918,2]
[312072693,1705597676091,201.34,0.00019127,2]
[312072694,1705597676610,201.34,0.00021391,2]
[312072695,1705597677894,1852.42,0.00020959,2]
[312072696,1705597701164,156.84,0.00021132,2]
[312072703,1705597758397,207.59,0.0002096,2]
[312072704,1705597810597,156.44,0.00020983,2]
[312072705,1705597819618,788.33,0.00020959,2]
[312072706,1705597822308,1000.0,0.00020906,2]
[312072762,1705597831774,-516.51875521,0.00021608,2]
[312072765,1705597831784,-150.0,0.00021609,2]
[312072767,1705597831793,-2818.75909062,0.00021609,2]
[312072773,1705597831842,-810.90138957,0.00021609,2]
[312072775,1705597831853,-1508.85821649,0.00021609,2]
[312072777,1705597831865,-406.32766242,0.00021609,2]
[312072779,1705597831874,-2605.00004126,0.00021609,2]
[312072781,1705597831883,-3126.62522492,0.0002161,2]
[312072783,1705597831893,-1014.0,0.00021613,2]
[312072785,1705597831902,-160.56,0.00021622,2]
[312072786,1705597831914,-396.52661707,0.00021679,2]
[312072787,1705597831923,-654.30445432,0.000217,2]
[312072788,1705597831936,-384.0,0.000217,2]
[312072789,1705597831948,-2227.25,0.000217,2]
[312072790,1705597834022,-376.90588678,0.000217,2]
[312072791,1705597834034,-1030.0,0.000217,2]
[312072792,1705597834046,-824.0,0.000217,2]
[312072793,1705597834115,-770.8308589,0.000217,2]
[312072794,1705597834125,-499.99,0.000217,2]
[312072795,1705597834136,-160.56,0.00021722,2]
[312072796,1705597834146,-448.08,0.00021722,2]
[312072797,1705597834155,-718.49,0.00021798,2]
[312072798,1705597834165,-725.36,0.00021798,2]
[312072799,1705597834174,-730.87,0.00021798,2]
[312072800,1705597834184,-716.11,0.00021798,2]
[312072802,1705597834194,-713.82,0.00021799,2]
[312072804,1705597834203,-392.0730511,0.00021799,2]
[312072812,1705597834499,-326.0769489,0.00021799,2]
[312072813,1705597834508,-5248.66483218,0.00021799,2]
[312072816,1705597840047,-916.156,0.00021799,2]
[312072817,1705597840059,-7770.45000059,0.00021799,2]
[312072818,1705597840071,-7463.24245259,0.00021799,2]
[312072819,1705597840117,-4977.982451,0.00021799,2]
[312072822,1705597840129,-13878.29866701,0.00021799,2]
[312072824,1705597840138,-299.99,0.00021799,7]
[312072826,1705597840147,-6785.31592899,0.000218,2]
[312072828,1705597840158,-2416.54229008,0.000218,2]
[312072830,1705597840169,-1241.5,0.000218,2]
[312072834,1705597840304,-1539.384,0.000218,2]
[312072835,1705597840315,-1155.32024633,0.000218,2]
[312072836,1705597840327,-569.77997016,0.000218,2]
[312072837,1705597840368,-1466.1436,0.000218,2]
[312072838,1705597840380,-73820.4101845,0.000218,2]
[312072839,1705597840390,-778.5798,0.000218,2]
[312072840,1705597840399,-5404.14355261,0.000218,2]
[312072841,1705597840411,-1914.29324015,0.000218,2]
[312072842,1705597840422,-728.01,0.000218,2]
[312072843,1705597840434,-553.27,0.000218,2]
[312072845,1705597840445,-4815.85280724,0.000218,2]
[312072847,1705597840454,-188.59454843,0.000218,2]
[312072849,1705597840463,-397.69487244,0.000218,2]
[312072851,1705597840472,-432.47665897,0.00021818,2]
[312072853,1705597840481,-160.56,0.00021822,2]
[312072855,1705597840490,-157.99040808,0.00021898,7]
[312072857,1705597840499,-346.04821517,0.00021898,2]
[312072858,1705597840508,-15521.50825759,0.00021898,2]
[312072860,1705597840517,-155.21585782,0.00021898,2]
[312072862,1705597840526,-1416.70167439,0.00021898,2]
[312072864,1705597840535,-843.00859129,0.00021898,2]
[312072866,1705597840544,-515.51327302,0.00021898,2]
[312072868,1705597840553,-1203.42619613,0.00021898,2]
[312072870,1705597840562,-2560.36887213,0.00021898,2]
[312072872,1705597840571,-2137.50172729,0.00021898,2]
[312072874,1705597840580,-231.93292492,0.00021898,2]
[312072875,1705597840589,-2089.59,0.00021898,2]
[312072878,1705597840598,-155.95609402,0.00021899,2]
[312072881,1705597840607,-1136.22308606,0.00021899,2]
[312072884,1705597840617,-500.0,0.00021899,2]
[312072887,1705597840626,-300.0,0.000219,7]
[312072890,1705597840635,-6614.55114921,0.000219,2]
[312072892,1705597840647,-261.355,0.000219,2]
[312072895,1705597840658,-195099.17433899,0.000219,2]
[312072898,1705597840685,-303739.06198072,0.000219,2]
[312072900,1705597840694,-129364.52515324,0.000219,2]
[312072902,1705597840703,-10000.0,0.00021918,2]
[312072904,1705597840712,-250.0,0.00021918,2]
[312072906,1705597840721,-160.56,0.00021922,2]
[312072908,1705597840730,-397.6948724,0.00021957,2]
[312072910,1705597840739,-3195.13608794,0.00022,2]
[312072912,1705597840748,-155.0,0.00022,2]
[312072914,1705597840758,-550.0,0.00022,3]
[312072916,1705597840766,-160.56,0.00022022,2]
[312072918,1705597840775,-157.70899038,0.00022033,2]
[312072920,1705597840784,-188.5945484,0.00022075,2]
[312072922,1705597840793,-397.6948724,0.00022114,2]
[312072924,1705597840802,-160.56,0.00022122,2]
[312072926,1705597840811,-700.0,0.000222,8]
[312072928,1705597840821,-160.56,0.00022222,2]
[312072930,1705597840830,-397.6948724,0.00022271,2]
[312072932,1705597840839,-5000.0,0.00022294,2]
[312072934,1705597840848,-1000.0,0.000223,8]
[312072936,1705597840857,-188.5945484,0.0002235,2]
[312072938,1705597840867,-432.47665896,0.00022359,2]
[312072940,1705597840876,-1400.0,0.000224,8]
[312072942,1705597840885,-397.6948724,0.00022429,2]
[312072944,1705597840896,-500.0,0.00022447,2]
[312072946,1705597840906,-157.70899038,0.00022466,2]
[312072948,1705597840915,-1700.0,0.000225,8]
[312072950,1705597840928,-397.6948724,0.00022586,2]
[312072952,1705597840937,-300.0,0.000226,8]
[312072954,1705597840946,-188.5945484,0.00022625,2]
[312072956,1705597840955,-300.0,0.000227,8]
[312072958,1705597840965,-397.6948724,0.00022743,2]
[312072960,1705597840973,-300.0,0.000228,8]
[312072962,1705597840983,-500.0,0.00022874,2]
[312072964,1705597840992,-500.0,0.00022882,2]
[312072966,1705597841002,-500.0,0.00022891,2]
[312072968,1705597841011,-168.12312928,0.000229,2]
[312072970,1705597841021,-157.70899038,0.000229,2]
[312072972,1705597841030,-500.0,0.000229,2]
[312072974,1705597841039,-17610.48285604,0.000229,2]
[312072976,1705597841049,-158.21629237,0.000229,2]
[312072978,1705597841058,-8778.8976,0.000229,2]
[312072980,1705597841067,-330.79897173,0.000229,2]
[312072982,1705597841078,-188.5945484,0.000229,2]
[312072984,1705597841087,-1751.08013731,0.000229,2]
[312072986,1705597841097,-303.729426,0.000229,2]
[312072988,1705597841106,-181.78538729,0.000229,4]
[312072990,1705597841119,-176.63801375,0.000229,2]
[312072992,1705597841129,-785.60438615,0.000229,6]
[312072994,1705597841139,-300.0,0.000229,8]
[312072996,1705597841149,-520.58684909,0.00022957,2]
[312072998,1705597841159,-9887.2274667,0.0002298,2]
[312073000,1705597841170,-157.83,0.00022995,2]
[312073002,1705597841180,-229.76031897,0.00022995,2]
[312073004,1705597841190,-153.17354599,0.00022995,2]
[312073006,1705597841201,-150.0,0.00022999,2]
[312073008,1705597841212,-150.0,0.00022999,2]
[312073010,1705597841222,-150.0,0.00022999,2]
[312073012,1705597841233,-150.0,0.00022999,2]
[312073014,1705597841242,-150.0,0.00022999,2]
[312073016,1705597841253,-150.0,0.00022999,2]
[312073018,1705597841263,-150.0,0.00022999,2]
[312073021,1705597841273,-150.0,0.00022999,2]
[312073022,1705597841283,-150.0,0.00022999,2]
[312073024,1705597841293,-150.0,0.00022999,2]
[312073027,1705597841303,-150.0,0.00022999,2]
[312073029,1705597841313,-150.0,0.00022999,2]
[312073031,1705597841322,-150.0,0.00022999,2]
[312073032,1705597841332,-150.0,0.00022999,2]
[312073034,1705597841342,-150.0,0.00022999,2]
[312073037,1705597841354,-150.0,0.00022999,2]
[312073038,1705597841367,-150.0,0.00022999,2]
[312073040,1705597841376,-150.0,0.00022999,2]
[312073042,1705597841385,-150.0,0.00022999,2]
[312073044,1705597841395,-150.0,0.00022999,2]
[312073046,1705597841404,-150.0,0.00022999,2]
[312073048,1705597841413,-150.0,0.00022999,2]
[312073050,1705597841422,-150.0,0.00022999,2]
[312073052,1705597841431,-150.0,0.00022999,2]
[312073054,1705597841440,-150.0,0.00022999,2]
[312073056,1705597841449,-150.0,0.00022999,2]
[312073058,1705597841457,-150.0,0.00022999,2]
[312073060,1705597841466,-150.0,0.00022999,2]
[312073061,1705597841475,-150.0,0.00022999,2]
[312073062,1705597841484,-150.0,0.00022999,2]
[312073063,1705597841494,-150.0,0.00022999,2]
[312073064,1705597841502,-150.0,0.00022999,2]
[312073065,1705597841512,-150.0,0.00022999,2]
[312073066,1705597841521,-150.0,0.00022999,2]
[312073067,1705597841531,-1167286.51498041,0.00023,3]
[312073068,1705597841541,-12789.42057024,0.00023,2]
[312073069,1705597841550,-7804854.11313813,0.00023,2]
[312073070,1705597841563,-115149.94693358,0.00023,2]
[312073071,1705597841574,-324.86195949,0.00023,2]
[312073073,1705597841584,-4198.4802,0.00023,2]
[312073076,1705597841601,-312.20267404,0.000229,2]
[312073078,1705597841614,-120.27398492,0.000229,2]
[312073080,1705597841623,-1346.75491508,0.00023,2]
[312073083,1705597841639,-178000.0,0.00023,2]
[312073085,1705597841650,-8398.1628,0.00023,2]
[312073087,1705597841661,-8854.67808001,0.00023,2]
[312073091,1705597841691,-617.97703804,0.00023,2]
[312073094,1705597841704,-20898.0,0.00023,2]
[312073096,1705597841715,-774.99796469,0.00023,2]
[312073213,1705597842881,-483.48555659,0.00023,2]
[312073216,1705597842896,-1077.19,0.00023,2]
[312073219,1705597842911,-16404.73175562,0.00023,2]
[312073229,1705597843040,-5518.04389938,0.00023,2]
[312073230,1705597843052,-1770.95332803,0.00023,2]
[312073231,1705597843063,-274.27926531,0.00023,2]
[312073232,1705597843117,-1657.5082781,0.00023,2]
[312073233,1705597843128,-1208.62490037,0.00023,2]
[312073234,1705597843139,-5868.50845813,0.00023,2]
[312073235,1705597843149,-1579.64302071,0.00023,2]
[312073236,1705597843160,-10352.7639,0.00023,2]
[312073242,1705597843841,3122.52563768,0.00020803,2]
[312073257,1705597845850,-362.17612718,0.00021898,2]
[312073258,1705597845860,-78.33887282,0.000229,2]
[312073259,1705597845876,-319.35599958,0.000229,2]
[312073260,1705597845885,-2419.77365346,0.00022999,2]
[312073261,1705597845897,-1326.8594333,0.00022999,2]
[312073262,1705597845907,-5636.9056797,0.00023,2]
[312073263,1705597845918,-8393.91703498,0.00023,2]
[312073264,1705597845934,-1790.96128466,0.00023,2]
[312073265,1705597846070,-5090.62475993,0.00023,2]
[312073266,1705597846159,-276.32499724,0.00023,2]
[312073267,1705597846171,-620.2,0.00023,2]
[312073268,1705597846183,-281.786,0.00023,2]
[312073269,1705597846195,-9827.45612704,0.00023,2]
[312073270,1705597846213,-1910.26062,0.00023,2]
[312073271,1705597846225,-1716.54947,0.00023,2]
[312073332,1705597848406,411.76908588,0.0002096,5]
[312073333,1705597895850,4344.79734035,0.00020803,2]
[312073334,1705597906970,1900.2453,0.00021514,2]
[312073335,1705597911864,395.72981611,0.00020803,2]
[312073336,1705597918487,2605.00004126,0.00020802,2]
[312073337,1705597933086,157.02560587,0.000216,2]
[312073338,1705597960752,201.14066681,0.000216,2]
[312073342,1705598048483,155.06,0.00020922,2]
[312073343,1705598100359,158.52,0.00021079,2]
[312073344,1705598100765,158.52,0.00021236,2]
[312073345,1705598101183,158.52,0.00021393,2]
[312073346,1705598101399,158.52,0.0002155,2]
[312073349,1705598128487,30879.4459,0.000216,2]
[312073350,1705598140736,163.9,0.00021449,2]
[312073351,1705598157788,734.94,0.0002144,2]
[312073352,1705598186922,250.0,0.00021295,2]
[312073353,1705598197319,500.0,0.000216,2]
[312073354,1705598199979,151378.9677,0.000216,2]
[312073355,1705598205940,207.59,0.00020922,2]
[312073356,1705598237681,261.15,0.00021399,2]
[312073357,1705598293130,215.28,0.00019377,2]
[312073358,1705598349326,200.0,0.00021236,2]
[312073359,1705598396295,245000.0,0.000216,2]
[312073360,1705598498321,150.97,0.00021186,2]
[312073361,1705598517094,2000.0,0.00021245,2]
[312073362,1705598556145,152.3,0.00021245,2]
[312073363,1705598604329,165.18,0.00016989,2]
[312073364,1705598615884,23900.0,0.00020738,2]
[312073365,1705598616540,250.0,0.00021167,2]
[312073366,1705598632258,50510.78554689,0.00016989,2]
[312073367,1705598645173,18948.40984176,0.00016989,2]
[312073368,1705598660856,292.99,0.00020738,2]
[312073369,1705598662269,12558.69342296,0.00016989,2]
[312073370,1705598667388,6077.73592096,0.00016989,2]
[312073371,1705598667417,7471.79404314,0.00016989,2]
[312073372,1705598668210,16369.5327338,0.00016904,2]
[312073373,1705598685967,158.52,0.00021235,2]
[312073374,1705598686045,158.52,0.00021512,2]
[312073375,1705598722641,204.51,0.00019336,2]
[312073376,1705598723139,204.51,0.000216,2]
[312073377,1705598752089,178.86,0.00020738,2]
[312073382,1705598826307,157.47,0.00021527,2]
[312073383,1705598829056,150.0,0.00020738,2]
[312073384,1705598838660,474.43564618,0.00021602,2]
[312073392,1705598846099,285.40909205,0.00021602,2]
[312073393,1705598846954,4487.93862485,0.00021602,2]
[312073394,1705598847417,217.97798028,0.00021602,2]
[312073395,1705598848497,173.60613909,0.00021505,2]
[312073396,1705598881105,157.58541762,0.00021602,2]
[312073397,1705598882596,248.75310239,0.00021602,2]
[312073398,1705598934287,840.0,0.00021298,2]
[312073399,1705598962063,150.23,0.00020738,2]
[312073426,1705599034140,-226.03253438,0.00021603,2]
[312073427,1705599034150,-175.14852125,0.00021603,2]
[312073428,1705599034159,-705.19394437,0.00021697,2]
[312073429,1705599034171,-1254.97494,0.00021697,2]
[312073430,1705599034183,-56.30916018,0.00021697,2]
[312073431,1705599034193,-243.99048132,0.00021698,2]
[312073433,1705599034494,-907.94,0.00021698,2]
[312073435,1705599034505,-1453.12173294,0.00021698,2]
[312073437,1705599034515,-278.0072,0.00021698,2]
[312073438,1705599034524,-346.46147837,0.00021698,2]
[312073439,1705599034535,-153.52852163,0.00021698,2]